[Event "Titled Tuesday Blitz April 11 Early 2023"]
[White "hsd2016"]
[Black "Sanchez Alvares, Kelvin Antonio"]
[BlackFideId "3906680"]
[WhiteElo "2093"]
[BlackElo "2217"]
[Result "1-0"]
[Round "11"]
[TimeControl "180+2"]
[Date "2023.04.11"]
[WhiteClock "0:00:15"]
[BlackClock "0:01:17"]

1. e4 {[%clk 0:03:00]}  e5 {[%clk 0:02:59]} 2. Nf3 {[%clk 0:03:01]}  Nc6 {[%clk 0:02:59]} 3. Bb5 {[%clk 0:03:02]}  a6 {[%clk 0:02:59]} 4. Bxc6 {[%clk 0:03:02]}  dxc6 {[%clk 0:03:00]} 5. O-O {[%clk 0:03:03]}  f6 {[%clk 0:03:00]} 6. d4 {[%clk 0:03:03]}  exd4 {[%clk 0:03:00]} 7. Nxd4 {[%clk 0:03:04]}  c5 {[%clk 0:03:00]} 8. Ne2 {[%clk 0:03:05]}  Qxd1 {[%clk 0:03:00]} 9. Rxd1 {[%clk 0:03:06]}  Bd7 {[%clk 0:02:59]} 10. Nbc3 {[%clk 0:03:06]}  O-O-O {[%clk 0:03:00]} 11. f3 {[%clk 0:03:06]}  Bd6 {[%clk 0:02:58]} 12. Bf4 {[%clk 0:03:06]}  Bxf4 {[%clk 0:02:57]} 13. Nxf4 {[%clk 0:03:07]}  Ne7 {[%clk 0:02:56]} 14. Rd2 {[%clk 0:03:04]}  Bc6 {[%clk 0:02:45]} 15. Rad1 {[%clk 0:03:03]}  Rxd2 {[%clk 0:02:44]} 16. Rxd2 {[%clk 0:03:03]}  g5 {[%clk 0:02:41]} 17. Ne6 {[%clk 0:03:04]}  b6 {[%clk 0:02:38]} 18. Ng7 {[%clk 0:02:42]}  Rg8 {[%clk 0:02:31]} 19. Nh5 {[%clk 0:02:40]}  Rf8 {[%clk 0:02:31]} 20. Ng3 {[%clk 0:02:37]}  Rd8 {[%clk 0:02:27]} 21. Rxd8+ {[%clk 0:02:36]}  Kxd8 {[%clk 0:02:27]} 22. Kf2 {[%clk 0:02:33]}  Be8 {[%clk 0:02:22]} 23. Ke3 {[%clk 0:02:30]}  Ng6 {[%clk 0:02:22]} 24. Nd5 {[%clk 0:02:27]}  Ne5 {[%clk 0:02:08]} 25. b3 {[%clk 0:02:16]}  Nd7 {[%clk 0:02:07]} 26. Ne2 {[%clk 0:01:24]}  Bf7 {[%clk 0:02:05]} 27. Nec3 {[%clk 0:01:18]}  b5 {[%clk 0:02:04]} 28. Kd3 {[%clk 0:01:08]}  c4+ {[%clk 0:01:57]} 29. bxc4 {[%clk 0:00:33]}  c6 {[%clk 0:01:55]} 30. Ne3 {[%clk 0:00:30]}  Ne5+ {[%clk 0:01:54]} 31. Kd4 {[%clk 0:00:30]}  Nxc4 {[%clk 0:01:53]} 32. Nxc4 {[%clk 0:00:30]}  Bxc4 {[%clk 0:01:53]} 33. a3 {[%clk 0:00:30]}  Kc7 {[%clk 0:01:52]} 34. Kc5 {[%clk 0:00:30]}  Bf1 {[%clk 0:01:50]} 35. g3 {[%clk 0:00:30]}  a5 {[%clk 0:01:47]} 36. Nb1 {[%clk 0:00:24]}  Bg2 {[%clk 0:01:44]} 37. Nd2 {[%clk 0:00:24]}  h5 {[%clk 0:01:40]} 38. c3 {[%clk 0:00:20]}  Bh3 {[%clk 0:01:37]} 39. Nb3 {[%clk 0:00:18]}  Bg2 {[%clk 0:01:36]} 40. Nd4 {[%clk 0:00:18]}  Bh1 {[%clk 0:01:34]} 41. Ne6+ {[%clk 0:00:12]}  Kd7 {[%clk 0:01:32]} 42. Nd4 {[%clk 0:00:13]}  h4 {[%clk 0:01:30]} 43. gxh4 {[%clk 0:00:11]}  gxh4 {[%clk 0:01:30]} 44. Nxc6 {[%clk 0:00:07]}  Bxf3 {[%clk 0:01:29]} 45. Nxa5 {[%clk 0:00:08]}  Bxe4 {[%clk 0:01:29]} 46. Kxb5 {[%clk 0:00:09]}  Bd3+ {[%clk 0:01:28]} 47. Kc5 {[%clk 0:00:09]}  Ke6 {[%clk 0:01:28]} 48. Nb3 {[%clk 0:00:10]}  Ke5 {[%clk 0:01:28]} 49. Nd4 {[%clk 0:00:10]}  f5 {[%clk 0:01:27]} 50. a4 {[%clk 0:00:11]}  f4 {[%clk 0:01:27]} 51. a5 {[%clk 0:00:11]}  Ke4 {[%clk 0:01:27]} 52. Kb6 {[%clk 0:00:10]}  f3 {[%clk 0:01:26]} 53. Nxf3 {[%clk 0:00:10]}  Kxf3 {[%clk 0:01:27]} 54. a6 {[%clk 0:00:11]}  Kg2 {[%clk 0:01:19]} 55. a7 {[%clk 0:00:11]}  Be4 {[%clk 0:01:18]} 56. c4 {[%clk 0:00:12]}  Kxh2 {[%clk 0:01:18]} 57. c5 {[%clk 0:00:13]}  Ba8 {[%clk 0:01:16]} 58. c6 {[%clk 0:00:14]}  Kg3 {[%clk 0:01:16]} 59. c7 {[%clk 0:00:14]}  h3 {[%clk 0:01:17]} 60. c8=Q {[%clk 0:00:15]}  h2 {[%clk 0:01:17]} 61. Qxa8 {[%clk 0:00:15]}  h1=Q {[%clk 0:01:17]} 62. Qxh1 {[%clk 0:00:15]} 1-0


[Site "https://www.chess.com"]

[Event "Titled Tuesday Blitz April 11 Early 2023"]
[White "Sanchez, Robert"]
[Black "Quirke, Jeffrey"]
[WhiteFideId "2034360"]
[BlackFideId "2013029"]
[WhiteElo "1983"]
[BlackElo "2241"]
[Result "0-1"]
[Round "11"]
[TimeControl "180+2"]
[Date "2023.04.11"]
[WhiteClock "0:00:50"]
[BlackClock "0:00:03"]

1. e4 {[%clk 0:01:47]}  Nf6 {[%clk 0:02:27]} 2. Nc3 {[%clk 0:01:40]}  d5 {[%clk 0:02:26]} 3. e5 {[%clk 0:01:39]}  Nfd7 {[%clk 0:02:24]} 4. f4 {[%clk 0:01:38]}  e6 {[%clk 0:02:16]} 5. Nf3 {[%clk 0:01:38]}  c5 {[%clk 0:02:14]} 6. d4 {[%clk 0:01:38]}  Nc6 {[%clk 0:02:12]} 7. Be3 {[%clk 0:01:37]}  cxd4 {[%clk 0:01:21]} 8. Nxd4 {[%clk 0:01:36]}  Bc5 {[%clk 0:01:21]} 9. Qd2 {[%clk 0:01:34]}  Nxd4 {[%clk 0:01:11]} 10. Bxd4 {[%clk 0:01:34]}  Bxd4 {[%clk 0:01:12]} 11. Qxd4 {[%clk 0:01:33]}  Qb6 {[%clk 0:01:12]} 12. O-O-O {[%clk 0:01:32]}  O-O {[%clk 0:01:10]} 13. Qd2 {[%clk 0:01:29]}  a6 {[%clk 0:01:02]} 14. Bd3 {[%clk 0:01:29]}  Nc5 {[%clk 0:00:55]} 15. Kb1 {[%clk 0:01:29]}  Bd7 {[%clk 0:00:50]} 16. h4 {[%clk 0:01:27]}  Nxd3 {[%clk 0:00:49]} 17. cxd3 {[%clk 0:01:26]}  Qa5 {[%clk 0:00:42]} 18. d4 {[%clk 0:01:25]}  Rfc8 {[%clk 0:00:36]} 19. g4 {[%clk 0:01:24]}  Rc4 {[%clk 0:00:33]} 20. Rhf1 {[%clk 0:01:17]}  Rac8 {[%clk 0:00:33]} 21. Rf3 {[%clk 0:01:14]}  Qc7 {[%clk 0:00:19]} 22. f5 {[%clk 0:01:12]}  b5 {[%clk 0:00:08]} 23. f6 {[%clk 0:01:12]}  h6 {[%clk 0:00:09]} 24. fxg7 {[%clk 0:01:10]}  Kxg7 {[%clk 0:00:07]} 25. Rf6 {[%clk 0:01:00]}  Rxc3 {[%clk 0:00:05]} 26. Qxh6+ {[%clk 0:00:51]}  Kg8 {[%clk 0:00:04]} 27. Rd2 {[%clk 0:00:50]}  Rc1# {[%clk 0:00:03]} 0-1


[Site "https://www.chess.com"]

[Event "Titled Tuesday Blitz April 11 Early 2023"]
[White "Hartikainen, Jarmo"]
[Black "Gritsenko, Nikolai"]
[WhiteFideId "503134"]
[BlackFideId "14112493"]
[WhiteElo "2054"]
[BlackElo "2389"]
[Result "0-1"]
[Round "11"]
[TimeControl "180+2"]
[Date "2023.04.11"]
[WhiteClock "0:00:28"]
[BlackClock "0:00:36"]

1. e4 {[%clk 0:03:00]}  f6 {[%clk 0:02:59]} 2. d4 {[%clk 0:02:59]}  c6 {[%clk 0:02:59]} 3. Nc3 {[%clk 0:02:58]}  g6 {[%clk 0:02:57]} 4. Nf3 {[%clk 0:02:55]}  Nh6 {[%clk 0:02:56]} 5. Bd3 {[%clk 0:02:54]}  Nf7 {[%clk 0:02:56]} 6. h4 {[%clk 0:02:47]}  d6 {[%clk 0:02:54]} 7. Be3 {[%clk 0:02:42]}  b5 {[%clk 0:02:44]} 8. a3 {[%clk 0:02:40]}  a6 {[%clk 0:02:44]} 9. Qd2 {[%clk 0:02:38]}  Bb7 {[%clk 0:02:41]} 10. e5 {[%clk 0:02:11]}  fxe5 {[%clk 0:02:16]} 11. dxe5 {[%clk 0:02:10]}  Bg7 {[%clk 0:02:16]} 12. h5 {[%clk 0:02:00]}  Nxe5 {[%clk 0:02:07]} 13. Nxe5 {[%clk 0:01:56]}  Bxe5 {[%clk 0:02:06]} 14. hxg6 {[%clk 0:01:56]}  hxg6 {[%clk 0:02:06]} 15. O-O-O {[%clk 0:01:34]}  Kd7 {[%clk 0:02:02]} 16. Bxg6 {[%clk 0:01:29]}  Kc8 {[%clk 0:01:55]} 17. f4 {[%clk 0:01:26]}  Bf6 {[%clk 0:01:51]} 18. g4 {[%clk 0:01:19]}  Nd7 {[%clk 0:01:15]} 19. Bf5 {[%clk 0:01:14]}  Kc7 {[%clk 0:01:08]} 20. Qf2 {[%clk 0:01:11]}  c5 {[%clk 0:01:05]} 21. Nd5+ {[%clk 0:01:07]}  Bxd5 {[%clk 0:01:03]} 22. Rxd5 {[%clk 0:01:07]}  Rxh1+ {[%clk 0:01:02]} 23. Kd2 {[%clk 0:01:05]}  Nb6 {[%clk 0:00:59]} 24. Be4 {[%clk 0:00:50]}  Nxd5 {[%clk 0:00:55]} 25. Bxd5 {[%clk 0:00:50]}  Qh8 {[%clk 0:00:54]} 26. Bxc5 {[%clk 0:00:45]}  Rh2 {[%clk 0:00:45]} 27. Bg2 {[%clk 0:00:44]}  Rxg2 {[%clk 0:00:43]} 28. Bb6+ {[%clk 0:00:40]}  Kb7 {[%clk 0:00:39]} 29. Qxg2+ {[%clk 0:00:40]}  Kxb6 {[%clk 0:00:40]} 30. c3 {[%clk 0:00:31]}  Rc8 {[%clk 0:00:37]} 31. g5 {[%clk 0:00:28]}  Bxc3+ {[%clk 0:00:36]} 0-1


[Site "https://www.chess.com"]